Cogmind - Beta 11 @@@ ROGUE MODE // 2022.04.13 @ 14:53:03 Player: DaddyWalrus Result: Destroyed by D-53 Grenadier with Mini Grenade Launcher Performance ------------- Evolutions (0) 0 Regions Visited (2) 400 Robots Destroyed (42) 210 Value Destroyed (748) 748 Prototype IDs (0) 0 Alien Tech Used (0) 0 Bonus (0) 0 TOTAL SCORE: 1358 Bonus ------- None Cogmind --------- Core Integrity 0/250 Matter 284/300 Energy 99/100 System Corruption 0% Temperature Cool (0) Movement Rolling (200) Ox8 Location -10/Mines Parts ------- > --- POWER (1) -------- (None) > --- PROPULSION (2) --- Wheel > --- UTILITY (2) ------ Huge Storage Unit Improved Light Armor Plating > --- WEAPON (2) ------- Assault Rifle > --- INVENTORY (25) --- Ion Engine Improved Treads Improved Treads Improved Treads Improved Treads Advanced Treads Aluminum Leg Aluminum Leg Wheel Wheel Wheel Advanced Targeting Computer Improved Weapon Shielding Reactive Plating Light Assault Rifle Light Assault Rifle Light Assault Rifle Light Assault Rifle Light Assault Rifle Light Assault Rifle Rocket Launcher Datajack Heavy Hammer Heavy Hammer Peak State ------------ > --- POWER ------------ Ion Engine > --- PROPULSION ------- Wheel Wheel > --- UTILITY ---------- Huge Storage Unit Improved Light Armor Plating > --- WEAPON ----------- Assault Rifle Assault Rifle > --- INVENTORY -------- Light Ion Engine Improved Treads Improved Treads Improved Treads Improved Treads Advanced Treads Wheel Wheel Wheel Wheel Wheel Advanced Targeting Computer Improved Weapon Shielding Reactive Plating Light Assault Rifle Light Assault Rifle Light Assault Rifle Light Assault Rifle Light Assault Rifle Light Assault Rifle Grenade Launcher Rocket Launcher Datajack Heavy Hammer Heavy Hammer [Rating: 13] Favorites ----------- Power Ion Engine Engine Ion Engine Propulsion Wheel Treads Light Treads Wheel Wheel Utility Improved Terrain Scanner Device Improved Terrain Scanner Storage Huge Storage Unit Protection Improved Light Armor Plating Weapon Assault Rifle Ballistic Gun Assault Rifle Launcher Grenade Launcher Build | -11 -10 -10 ------- Run | Scr Mat Min Slots Evolved . | . . . Power . | . . . Propulsion . | . . . Utility . | . . . Weapon . | . . . Parts Attached 40 | 7 24 9 Power 2 | 1 . 1 Engine 2 | 1 . 1 Core . | . . . Reactor . | . . . Propulsion 20 | 2 16 2 Treads 8 | 1 7 . Leg . | . . . Wheel 12 | 1 9 2 Hover . | . . . Flight . | . . . Utility 7 | 2 4 1 Device 1 | 1 . . Storage 5 | 1 4 . Processor . | . . . Hackware . | . . . Protection 1 | . . 1 Artifact . | . . . Weapon 11 | 2 4 5 Energy Gun . | . . . Energy Cannon . | . . . Ballistic Gun 7 | 2 2 3 Ballistic Cannon . | . . . Launcher 4 | . 2 2 Special Weapon . | . . . Impact Weapon . | . . . Slashing Weapon . | . . . Piercing Weapon . | . . . Special Melee Weapon . | . . . Unidentified Prototypes . | . . . Parts Lost 10 | . 2 8 Power 2 | . . 2 Propulsion 4 | . 1 3 Utility . | . . . Weapon 4 | . 1 3 Highest Loss Streak 4 | . 1 4 To Critical Strikes . | . . . Average Slot Usage (%) 99 | . 100 98 Engine 13 | . 14 13 Treads 7 | . 12 . Wheel 19 | . 15 27 Device 10 | . 14 4 Storage 14 | . 14 14 Protection 3 | . . 9 Ballistic Gun 27 | . 27 26 Naked Turns . | . . . Heaviest Build 92 | 15 90 92 Greatest Support 40 | 20 40 20 Greatest Overweight (x) 8 | . 4 8 Average Overweight (x) 2 | . 1 4 Largest Inventory Capacity 25 | 8 25 25 Average Capacity 18 | 7 16 25 Most Carried 25 | 6 25 25 Average Carried 16 | 5 14 24 Final Capacity 25 | 8 25 25 Final Carried 25 | 6 25 24 Class Distribution -------------------- 100% | Mutant Dominant Class ---------------- Mutant | -10/Materials Mutant | -10/Mines Resources | -11 -10 -10 ----------- Run | Scr Mat Min Matter Collected 1320 | 342 751 227 Remotely . | . . . Salvage Created 1121 | 98 778 245 Parts 78 | 9 56 13 Haulers Intercepted . | . . . Recyclers Shooed 2 | . 2 . Parts Field Recycled . | . . . Retrieved Matter . | . . . Parts Self-Destructed . | . . . Prevented . | . . . Kills | -11 -10 -10 ------- Run | Scr Mat Min Combat Hostiles Destroyed 26 | . 17 9 Guns 19 | . 14 5 AOE 7 | . 3 4 Classes Destroyed 8 | 2 5 1 Worker 8 | . 6 2 Builder 2 | . 2 . Tunneler 3 | 2 1 . Recycler 3 | 1 2 . Watcher 2 | . 2 . Swarmer 9 | . 6 3 Grunt 15 | . 11 4 Assembled 2 | . . 2 Best Kill Streak 7 | 1 4 7 Combat Bots Only 3 | . 3 3 Max Kills in Single Turn 2 | 1 2 2 Gunslinging . | . . . Exploded 2 | . 2 2 Melee . | . . . Uniques/NPCs Destroyed . | . . . Combat | -11 -10 -10 -------- Run | Scr Mat Min Damage Taken 1481 | . 724 757 Core 257 | . 81 176 Absorbed by Shields . | . . . Core Remaining (%) 100 | 100 . . Volleys Fired 130 | 12 87 31 Largest 2 | 2 2 2 Hottest 50 | 40 50 50 Shots Fired 257 | 24 174 59 Gun 250 | 24 171 55 Cannon . | . . . Launcher 7 | . 3 4 Special . | . . . Kinetic 250 | 24 171 55 Thermal . | . . . Explosive 7 | . 3 4 Electromagnetic . | . . . Robot Hit Streak 9 | 7 9 9 Robot Miss Streak 8 | 3 8 2 Penetration Max . | . . . Secondary Targets 2 | . 1 1 Max Gunslinging Chain 1 | . 1 1 Shots Hit Robots 142 | 14 96 32 Core Hits 73 | 4 45 24 Critical Kills 1 | . 1 . Critical Parts Destroyed . | . . . Critical Strikes 1 | . 1 . Destroy 1 | . 1 . Melee Attacks . | . . . Impact . | . . . Slashing . | . . . Piercing . | . . . Sneak Attacks . | . . . Combat Hostiles . | . . . Follow-up Attacks . | . . . Damage Inflicted 2305 | 219 1405 681 Guns 1835 | 219 1284 332 Cannons . | . . . Explosions 470 | . 121 349 Melee . | . . . Ramming . | . . . Kinetic 1835 | 219 1284 332 Thermal . | . . . Explosive 470 | . 121 349 Electromagnetic . | . . . Impact . | . . . Slashing . | . . . Piercing . | . . . Highest Corruption . | . . . Average Corruption . | . . . Corruption Purged . | . . . Corruption Blocked . | . . . Overload Shots . | . . . Overflow Damage 16 | . 6 10 Projectiles . | . . . Explosions 16 | . 6 10 Melee . | . . . Knockbacks . | . . . Impact . | . . . Kinetic . | . . . Secondary . | . . . Self-Inflicted Damage 39 | . . 39 Shots 2 | . . 2 Rammed . | . . . Targets Rammed . | . . . Kicked . | . . . Crushed . | . . . Highest Temperature 48 | . 2 48 Average Temperature 18 | . 2 19 Received Heat Transfer 582 | . 309 273 Siege Activations . | . . . Robots Corrupted . | . . . Combat Hostiles . | . . . Parts Fried . | . . . Impact Corruptions . | . . . Robots Melted . | . . . Combat Hostiles . | . . . Parts Melted . | . . . Heat Transferred . | . . . Parts Sabotaged . | . . . Parts Stolen . | . . . Parts Stripped . | . . . Power Chain Reactions . | . . . Missiles Intercepted . | . . . Alert | -11 -10 -10 ------- Run | Scr Mat Min Peak Influence 380 | 15 380 319 Initial 112 | . 9 112 Average 215 | 8 248 224 Maximum Alert Level 1 | . 1 1 Low Security (%) 31 | 100 20 30 Level 1 68 | . 79 69 Level 2 . | . . . Level 3 . | . . . Level 4 . | . . . Level 5 . | . . . High Security . | . . . Max Security . | . . . Squads Dispatched 7 | . 6 1 Investigation 3 | . 2 1 Extermination . | . . . Reinforcement 4 | . 4 . Assault . | . . . Garrison . | . . . Intercept . | . . . Searches Triggered . | . . . Construction Impeded . | . . . Haulers Reinforced . | . . . Active Scanning Responses . | . . . Cargo Convoy Interrupts . | . . . Stealth | -11 -10 -10 --------- Run | Scr Mat Min Distress Signals 2 | . 2 . Communications Jammed . | . . . Distress Signals . | . . . Times Spotted 55 | . 36 19 Peak Tracking Total 11 | . 5 11 Tactical Retreats 4 | . 3 1 Traps | -11 -10 -10 ------- Run | Scr Mat Min Traps Triggered 2 | . 2 . Indirectly . | . . . Trap Hack Attempts . | . . . Triggered . | . . . Disarmed . | . . . Reprogrammed . | . . . Reused . | . . . Traps Extracted . | . . . Installed . | . . . Triggered . | . . . Machines | -11 -10 -10 ---------- Run | Scr Mat Min Machines Disabled 2 | . . 2 Max in Single Turn 1 | . . 1 Machines Sabotaged . | . . . Garrisons Compromised . | . . . Overloaded Fab Kills . | . . . Hacking | -11 -10 -10 --------- Run | Scr Mat Min Machines Accessed 2 | . 1 1 Terminals . | . . . Fabricators . | . . . Repair Stations . | . . . Recycling Units 1 | . 1 . Scanalyzers . | . . . Garrison Access . | . . . Total Hacks 2 | . 1 1 Successful 2 | . 1 1 Failed . | . . . Catastrophic . | . . . Database Lockouts . | . . . Manual . | . . . Terminals . | . . . Fabricators . | . . . Repair Stations . | . . . Recycling Units 1 | . 1 . Scanalyzers . | . . . Garrison Access . | . . . Terminal Hacks 1 | . . 1 Open Door 1 | . . 1 Fabricator Hacks . | . . . Repair Station Hacks . | . . . Recycling Unit Hacks 1 | . 1 . Report Inventory 1 | . 1 . Scanalyzer . | . . . Garrison Access Hacks . | . . . Unauthorized Hacks . | . . . Terminals . | . . . Fabricators . | . . . Repair Stations . | . . . Recycling Units . | . . . Scanalyzers . | . . . Garrison Access . | . . . Data Cores Recovered . | . . . Used . | . . . Hacking Detections . | . . . Full Trace Events . | . . . Feedback Events . | . . . Feedback Blocked . | . . . Robot Schematics Acquired . | . . . Robots Built . | . . . Authchips . | . . . Time . | . . . Total Robot Build Rating . | . . . Part Schematics Acquired . | . . . Parts Built . | . . . Authchips . | . . . Time . | . . . Total Part Build Rating . | . . . Parts Repaired . | . . . Time . | . . . Parts Recycled . | . . . Recycled Matter . | . . . Retrieved Matter . | . . . Retrieved Components . | . . . Parts Scanalyzed . | . . . Part Schematics Acquired . | . . . Parts Damaged . | . . . Bothacking | -11 -10 -10 ------------ Run | Scr Mat Min Used RIF Installer . | . . . Robots Hacked . | . . . Non-combat . | . . . Combat . | . . . Robot Hacks Applied . | . . . Relay Couplers Released . | . . . Fabnet Peak Effective % . | . . . Robots Rewired . | . . . Allies Hacked . | . . . Hacks Repelled . | . . . Allies | -11 -10 -10 -------- Run | Scr Mat Min Total Allies . | . . . Largest Group . | . . . Highest-Rated Group . | . . . Highest-Rated Ally . | . . . Total Orders . | . . . Ally Attacks . | . . . Total Damage . | . . . Kills . | . . . Allies Corrupted . | . . . Allies Melted . | . . . Intel | -11 -10 -10 ------- Run | Scr Mat Min Robot Analysis Total . | . . . Derelict Logs Recovered 1 | . . 1 Drone Launches . | . . . Drone Recoveries . | . . . Exploration | -11 -10 -10 ------------- Run | Scr Mat Min Turns Passed 1760 | 188 1011 561 Spaces Moved 972 | 93 564 315 Core 1 | 1 . . Treads 112 | 69 43 . Legs . | . . . Wheels 859 | 23 521 315 Hover . | . . . Flight . | . . . Fastest Speed 50 | 50 95 140 Average Speed 128 | 143 118 141 Slowest Speed 200 | 160 160 200 Overloaded Moves . | . . . Propulsion Burnouts . | . . . Robots Hopped . | . . . Cave-ins Triggered . | . . . Exploration Rate (%) 52 | 4 89 64 Regions Visited 2 Branch Regions 1 Pre-discovered Areas . | . . . Known Exits Taken . | . . . Unknown Exits Taken 2 | 1 1 . Scrap Searched 1 | . . 1 Spaces Dug 7 | . . 7 Terrain Destroyed 32 | . 9 23 Melee . | . . . Projectile . | . . . AOE 32 | . 9 23 Terrain Rammed . | . . . Walls Destroyed . | . . . Machines Disabled . | . . . Actions | -11 -10 -10 --------- Run | Scr Mat Min Total 1234 | 121 736 377 Wait 25 | . 18 7 Move 970 | 92 563 315 Hop . | . . . Pick Up 46 | 8 29 9 Fast Attach 8 | 7 . 1 Attach 8 | . 3 5 Detach 1 | . 1 . Swap 24 | . 21 3 Drop 22 | 2 14 6 Fire 130 | 12 87 31 Melee . | . . . Ram . | . . . Kick . | . . . Crush . | . . . Escape Stasis . | . . . Rewire . | . . . Trap . | . . . Miscellaneous . | . . . Route ------- -11/Scrapyard -10/Materials (discovered 4 exits: [*Mat x3] / *Min) -10/Mines (discovered 1 exit: [*Mat]) History --------- Turn | Location | Event 29 | -11/Scrapyard | Discovered new exit (range 14) 189 | -11/Scrapyard | Entered Materials 376 | -10/Materials | Discovered new exit (range 3) 380 | -10/Materials | Build established: Mutant 576 | -10/Materials | Discovered new exit (range 7) 848 | -10/Materials | Discovered new exit (range 7) 1019 | -10/Materials | Discovered new exit (range 15) 1200 | -10/Materials | Entered Mines 1255 | -10/Mines | Received a Rocket Launcher from a helpful Derelict 1264 | -10/Mines | Discovered new exit (range 14) 1382 | -10/Mines | Met a Derelict shopkeep closing up shop 1430 | -10/Mines | Core integrity fell below 50% 1516 | -10/Mines | Core integrity fell below 20% 1731 | -10/Mines | Assembled infested the area 1744 | -10/Mines | Learned location of 1 exit from Materials 1761 | -10/Mines | Destroyed by D-53 Grenadier with Mini Grenade Launcher Last Messages --------------- 01541_ Acquired 10 matter. 01652_ K-01 Serf collects debris. 01653_ K-01 Serf destroyed. 01656_ Acquired 4 matter. 01657_ K-01 Serf collects debris. 01731_ ALERT: Infestation in the mines, dispatching Demolisher response squad. 01744_ Acquired derelict log, extracted data. Data stored: Materials exits (x1). 01747_ as-03997 destroyed. 01750_ Grenade Launcher destroyed. 01752_ Wheel destroyed. 01756_ D-53 Grenadier unfolds itself. 01757_ Wheel destroyed. 01758_ as-31511 destroyed. 01758_ as-87322 destroyed. 01759_ Lgt. Ion Engine destroyed. 01760_ as-27455 destroyed. 01761_ as-92300 destroyed. 01761_ as-62412 destroyed. Map ----- +----------------------------------------------------+ | ??????????????????????????????????????????###### | | ???????????????????????????????????????????????## | | ????????????????????????????????????????????????## | | ???????????????????????????????????????? ????????# | | ????????????????????????????????????????????????## | | ???????????????????????????????????????????????## | | ???????????????????????????????????????????????# | | ??????????????????????????????????????????????## | | ????????????????????????????????????????????### | | ???????????????????????????????????????????## | | ????????????????????????????? ???????????# | | ???????????????????????????? ???#???????# | | ??????????????????????????? ???????????# | | ???????????????????????????? ???????????## | | ???????????????????????????? ????????# ??#### | | ????????????????????????????# ??????#?# ?????## | | ????????????????????????????? ##??????# ??#??# | | ?????????????????????????????# #####?## ##??## | | ?????????????????????????????# ??# ### | | ?????????????????????????????# ???# | | ?????????????????????????????# ?????# | | ?????????????????????????????# #?????## | | ??????????????????????????????# ##?????#### | | ????????????????????#######???# #??#?????## | | ???????? ?????????## ##### ##????????## # | | ???????? ???????# @ % ###????#### # | | ???????%! ????# dd ##### ###?## # # | | ?????? ?# #??## #??# | | ??????? % aa ##???##### #### # | | ?????????????## a ##?????#??## ## # | | ??????????????## a #?????????## # | | ???????????????# # ##??????????# ## | | ???????????????# #????????????## ##? | | ???????????????# #????????????##### ##?? | | ???????????????# #???????????????#####??? | | ???????????????## #???????????????#?????? | | ????????????????# #?????????????#??#??#?? | | ????????????????# ?????????????????????? | | ????????????????## #### ????????????????#???? | | ?????????????????####????#### ?????????#?????????? | | ?????????????????????????????##?????????????????#? | | ?????????????????????????????????????????????????? | | ?????????????????????????????????????????????????? | | | | | | | | | | | | | | | +----------------------------------------------------+ Best States ------------- Heat Dissipation 25 Energy Generation 10 Energy Capacity 250 Matter Stores 300 Matter Capacity 300 Sight Range 16 Terrain Scan Range 16 Terrain Scan Density 10 Armor Coverage 150 Evasion (%) 41 Recoil Reduction 2 Item Schematics ----------------- None Robot Schematics ------------------ None Fabricated ------------ Nothing Alien Tech Used ----------------- None Achievements -------------- None Challenges ------------ None Game ------ Seed SkeletonSiegeFemtoactuators Manual? 0 Play Time 00:17:13 Cumulative 190.6 hours Start 2022.04.13 @ 14:36:38 End 2022.04.13 @ 14:53:03 Sessions 1 Manual Loads 0 Difficulty Rogue Special Mode None Game No. 72 Rogue 72 Adventurer 0 Explorer 0 Win Type - Total 2 Types 1/0/1/0/0/0/0/0/0 Lore% 59 Gallery% 70 Achievement% 53 Wizard Run 0 Options --------- ASCII 1 Keyboard 1 Movement Numpad Keybinds 0 Fullscreen 1 Font 36/Smallcaps Map View 76x50 Tactical HUD 1 Map Filters NONE Filters NONE Steam 1 RUN: 0bca13c9-d71d-4bb3-a36d-1d7e8851dec9